{"text_format":"1","workbook":"xlsx","n_sheets":3,"sheets":["List1","List2","List3"],"not_rendered":{"charts":0,"images":0,"macros":0,"external_links":1,"defined_names":0,"comments":0,"pivot_tables":0},"unopened":[],"bounds":{"document_bytes":16777216,"sheet_cells":100000,"rows_first":2000,"rows_last":500,"rows_between":2000,"halvings":0,"cell_chars":16384,"cell_head_chars":4096},"cells_cut":0,"cells_raw":0,"read":"whole","date_system":"1900"}

{"sheet":"List1","index":0,"n_rows":67,"n_cols":10,"rows_kept":67,"cut":false,"hidden":false,"merged":[]}
[]
[]
["Obec , IČ: Náklo, 00299251"]
[]
["Rozpočtová změna č. 2 - duben 2021"]
[]
["V souladu s ustanovením § 16 zákona č. 250/2000 Sb., o rozpočtových pravidlech územních rozpočtů dojde k rozpočtovému"]
["opatření v případě změn rozpočtových prostředků na závazných ukazatelích."]
[]
["Rozpočtová změna č. 2/2021 (předloženo Radě obce dne 26.04.2021) a doplněno při jednání Rady obce"]
[]
["PŘÍJMY"]
["PAR","POL","UZ","PARAGRAF","POLOŽKA","Schválený ROZP","Upravený ROZP","změna ROZP","ROZP po ZMĚNĚ","POZNÁMKA"]
[0,1211,null,null,"Daň z přidané hodnoty Celkem",10000000,9195606.6899999995,-283380,{"$f":"G14+H14","v":8912226.6899999995}]
[]
[]
[0,1122,null,null,"Daň z příjmu právnických osob za obce",500000,800000,283380,{"$f":"H17+G17","v":1083380},"DPPO Obec"]
[null,null,null,null,"  0  Bez ODPA Celkem",39449455,39449455,{"$f":"SUM(H14:H17)","v":0},{"$f":"G18+H18","v":39449455}]
[]
[]
[null,null,null,"Celkem ZMĚNY v PŘÍJMECH",null,41986755,{"$f":"F21","v":41986755},{"$f":"H18","v":0},{"$f":"F21+H21","v":41986755}]
[]
[null,null,null,"Celkem PŘÍJMY",null,null,{"$f":"F21","v":41986755},{"$f":"H21","v":0},{"$f":"F21","v":41986755}]
[]
["VÝDAJE:"]
["PAR","POL","UZ","PARAGRAF","POLOŽKA","Schválený ROZP","ROZPOČTOVÁNO","změna ROZP","ROZP po ZMĚNĚ","POZNÁMKA"]
[]
[]
[]
[2219,5171,null,null,"Opravy a udržování",13000000,12438773.6,-283380,{"$f":"G30+H30","v":12155393.6}]
[]
[2219,null,null,"Ostatní záležitosti pozemních komunikací",null,{"$f":"F30+F31","v":13000000},12438773.6,{"$f":"H30+H31","v":-283380},12155393.6]
[]
[]
[6399,5365,null,null,"Platby daní a poplatků krajům, obcím a st. Fondům",500000,800000,283380,{"$f":"H35+F35","v":783380},"DPPO Obec"]
[6399,null,null,"Ostatní finanční operace",null,800000,800000,{"$f":"H35","v":283380},{"$f":"F36+H36","v":1083380}]
[]
[null,null,null,"Celkem ZMĚNY ve VÝDAJÍCH",null,52372601.700000003,{"$f":"F38","v":52372601.700000003},{"$f":"H36+H32","v":0},{"$f":"F38+H38","v":52372601.700000003}]
[]
[null,null,null,"Celkem VÝDAJE",null,null,{"$f":"F38","v":52372601.700000003},{"$f":"H38","v":0},{"$f":"I38","v":52372601.700000003}]
[]
[]
[]
["FINANCOVÁNÍ"]
["PAR","POL","UZ","PARAGRAF","POLOŽKA",null,"Upravený ROZP","změna ROZP","ROZP po ZMĚNĚ","POZNÁMKA"]
[null,null,null,"Celkem ZMĚNY ve FINANCOVÁNÍ:",null,null,null,0]
[]
[]
[null,null,null,"REKAPITULACE:"]
[]
[null,null,null,"Celkem PŘÍJMY",null,null,{"$f":"F21","v":41986755},{"$f":"H21","v":0},{"$f":"H51+G51","v":41986755}]
[null,null,null,"Celkem FINANCOVÁNÍ:",null,null,13307846.699999999,0,{"$f":"H52+G52","v":13307846.699999999}]
[null,null,null,"Celkem PŘÍJMY+FINANCOVÁNÍ",null,null,{"$f":"+G52+G51","v":55294601.700000003},{"$f":"+H52+H51","v":0},{"$f":"H53+G53","v":55294601.700000003}]
[]
[null,null,null,"Celkem VÝDAJE",null,null,{"$f":"F38","v":52372601.700000003},{"$f":"H38","v":0},{"$f":"G55+H55","v":52372601.700000003}]
[null,null,null,"Celkem FINANCOVÁNÍ:",null,null,2922000,0,{"$f":"H56+G56","v":2922000}]
[null,null,null,"Celkem VÝDAJE+FINANCOVÁNÍ",null,null,{"$f":"+G56+G55","v":55294601.700000003},{"$f":"+H56+H55","v":0},{"$f":"+I56+I55","v":55294601.700000003}]
[]
["Důvodová zpráva k rozpočtové změně č. 2/2021"]
[]
["Přesun prostředků v rámci nezajištěného výdaje je Čerpán z rezervy obce."]
[]
["Správce rozpočtu : "]
[]
["Starosta obce : "]
[]
["Rada obce schvaluje dne 26. 04. 2021 rozpočtová změna č. 2/2021 v předloženém rozsahu"]

{"sheet":"List2","index":1,"n_rows":24,"n_cols":1,"rows_kept":24,"cut":false,"hidden":false,"merged":[]}
["TEXTY PRO FORMULÁŘ ÚPRAVA ROZPOČTU - na začátek kopírují se řádky 3-13"]
["poznámka: Texty, které budou přenášeny z tohoto formuláře, musí být zapsány pouze ve sloupci A"]
[]
[]
["Obec , IČ: Náklo, 00299251"]
[]
["Rozpočtové změny roku 2019 -duben"]
[]
["V souladu s ustanovením § 16 zákona č. 250/2000 Sb., o rozpočtových pravidlech územních rozpočtů dojde k rozpočtovému"]
["opatření v případě změn rozpočtových prostředků na závazných ukazatelích."]
[]
["Rozpočtové opatření č. 1/2019 (předloženo na ZQ 6. 6. 2018) a doplněno při jednání na ZO"]
[]
["TEXTY PRO FORMULÁŘ ÚPRAVA ROZPOČTU - na začátek kopírují se řádky 16-32"]
[]
["Důvodová zpráva k rozpočtovému opatření č. 1/2019"]
[]
["Přesun prostředků v rámci nezajištěného výdaje je Čerpán z rezervy obce."]
[]
["Správce rozpočtu : "]
[]
["Starosta obce : "]
[]
["ZO schvaluje dne 6. 6. 2018 rozpočtové opatření č. 3/2018 v předloženém rozsahu Usnesením č. 1038/1860"]

{"sheet":"List3","index":2,"n_rows":0,"n_cols":0,"rows_kept":0,"cut":false,"hidden":false,"merged":[]}